bitfinex/quotes_SOLUSD_20240915
["timestamp","ask_amount","ask_price","bid_price","bid_amount"]
[1726358402891,0.2563927,137.49,137.43,20.0]
[1726358403908,0.2563927,137.49,137.45,20.0]
[1726358404216,0.2563927,137.49,137.45,31.01739332]
[1726358404884,0.2563927,137.49,137.45,45.2695713]
[1726358406501,0.2563927,137.49,137.45,34.25217798]
[1726358409213,0.2563927,137.49,137.44,0.25098]
[1726358409391,0.2563927,137.49,137.46,20.0]
[1726358415593,0.2563927,137.49,137.46,14.25217798]
[1726358415792,0.2563927,137.49,137.46,20.0]
[1726358416037,0.2563927,137.49,137.45,0.25098]
[1726358416198,0.2563927,137.49,137.45,20.25098]
[1726358424203,0.2563927,137.49,137.45,16.15879553]
[1726358425823,0.2563927,137.49,137.43,14.25217798]
[1726358426528,0.2563927,137.49,137.44,20.0]
[1726358428332,0.2563927,137.49,137.44,15.70878347]
[1726358429042,16.8019927,137.49,137.44,8.41478347]
[1726358429332,16.8019927,137.49,137.42,14.25217798]
[1726358431234,16.8019927,137.49,137.43,14.34616079]
[1726358431539,16.8019927,137.49,137.41,21.98812185]
[1726358431917,16.8019927,137.49,137.42,14.25217798]
[1726358432113,16.8019927,137.49,137.43,14.25217798]
[1726358432317,16.8019927,137.49,137.43,25.2695713]
[1726358432525,16.8019927,137.49,137.44,14.25217798]
[1726358442637,16.8019927,137.49,137.44,15.70697087]
[1726358442946,16.8019927,137.49,137.44,14.25217798]
[1726358447449,16.8019927,137.49,137.44,20.0]
[1726358452933,16.8019927,137.49,137.42,34.25217798]
[1726358453454,16.8019927,137.49,137.43,20.0]
[1726358454455,16.8019927,137.49,137.42,20.0]
[1726358454653,16.8019927,137.49,137.42,34.25217798]
[1726358459660,16.8019927,137.49,137.45,14.25217798]
[1726358459964,16.8019927,137.49,137.46,14.25217798]
[1726358464665,16.8019927,137.49,137.45,34.37766798]
[1726358464854,16.8019927,137.49,137.45,20.12549]
[1726358465057,16.8019927,137.49,137.42,7.60381029]
[1726358465263,16.8019927,137.49,137.43,20.0]
[1726358465465,16.8019927,137.49,137.44,15.70698125]
[1726358465669,16.8019927,137.49,137.44,14.25217798]
[1726358471678,16.8019927,137.49,137.45,14.25217798]
[1726358472472,16.8019927,137.49,137.44,14.37766798]
[1726358472675,16.8019927,137.49,137.44,14.50315798]
[1726358477155,16.8019927,137.49,137.44,14.37766798]
[1726358478766,16.8019927,137.49,137.43,20.12549]
[1726358478974,16.8019927,137.49,137.43,20.0]
[1726358479275,16.8019927,137.49,137.43,34.25217798]
[1726358480383,16.8019927,137.49,137.43,45.2695713]
[1726358487889,16.8019927,137.49,137.44,0.25098]
[1726358492969,16.8019927,137.49,137.43,45.2695713]
[1726358493177,16.8019927,137.49,137.43,34.25217798]
[1726358495286,16.8019927,137.49,137.42,7.60381029]
[1726358495597,15.1351,137.46,137.39,14.25217798]
[1726358496878,15.1351,137.46,137.4,20.0]
[1726358497600,15.1351,137.46,137.37,34.25217798]
[1726358497893,6.6353,137.45,137.37,34.25217798]
[1726358499277,6.6353,137.45,137.37,14.25217798]
[1726358499674,6.6353,137.45,137.36,24.78839463]
[1726358499987,6.6353,137.45,137.37,24.66290463]
[1726358500187,6.6353,137.45,137.38,10.41072665]
[1726358503099,15.1209,137.44,137.38,10.41072665]
[1726358504403,15.1209,137.44,137.37,14.25217798]
[1726358506208,15.1209,137.44,137.36,34.50315798]
[1726358507201,23.776884,137.43,137.36,20.0]
[1726358507384,15.1209,137.41,137.34,20.2563927]
[1726358507591,15.1209,137.41,137.34,34.50857068]
[1726358507985,15.1209,137.41,137.35,14.25217798]
[1726358516701,15.1209,137.41,137.36,1.45572304]
[1726358516912,15.1209,137.41,137.36,38.28004198]
[1726358517089,15.1209,137.41,137.36,14.50315798]
[1726358519205,15.1209,137.41,137.36,14.37766798]
[1726358519595,15.1209,137.41,137.35,14.37766798]
[1726358520094,15.1209,137.41,137.35,0.25098]
[1726358520288,15.1209,137.41,137.35,20.25098]
[1726358525694,15.1209,137.41,137.35,34.50315798]
[1726358526313,15.1209,137.41,137.36,14.25217798]
[1726358526512,15.1209,137.41,137.37,14.25217798]
[1726358529109,6.4836,137.42,137.38,15.7076301]
[1726358529423,6.4836,137.42,137.38,14.25217798]
[1726358540142,15.1601,137.44,137.38,14.25217798]
[1726358540503,15.1601,137.44,137.39,14.25217798]
[1726358543038,15.1601,137.44,137.38,14.25217798]
[1726358548928,15.1601,137.44,137.35,16.97952895]
[1726358549134,15.1601,137.44,137.36,20.0]
[1726358551633,16.215,137.41,137.35,7.60952452]
[1726358551831,16.215,137.41,137.34,0.2563927]
[1726358553640,16.215,137.41,137.35,23.62218241]
[1726358553807,16.215,137.41,137.36,1.45569487]
[1726358554014,16.215,137.41,137.35,23.62218241]
[1726358555121,16.215,137.41,137.35,14.25217798]
[1726358557221,16.215,137.41,137.34,0.2563927]
[1726358557422,16.215,137.41,137.35,20.0]
[1726358560018,16.215,137.41,137.34,0.2563927]
[1726358564219,16.215,137.41,137.34,14.50857068]
[1726358564425,16.215,137.41,137.35,20.0]
[1726358569140,16.215,137.41,137.37,14.25217798]
[1726358569447,16.215,137.41,137.38,15.70767724]
[1726358570443,16.215,137.41,137.38,14.25217798]
[1726358577050,16.3425,137.45,137.38,14.25217798]
[1726358580662,16.3425,137.45,137.37,0.12549]
[1726358580859,16.3425,137.45,137.37,20.12549]
[1726358581857,16.3425,137.45,137.37,20.0]
[1726358584759,23.776884,137.44,137.37,20.0]
[1726358603962,19.38457687,137.44,137.37,20.0]
[1726358604469,16.3425,137.45,137.37,20.0]
[1726358606075,6.2775,137.44,137.37,20.0]
[1726358606975,16.6612,137.43,137.37,20.0]
[1726358607177,16.6612,137.43,137.34,22.11786379]
[1726358608479,16.6612,137.43,137.35,20.0]
[1726358608669,16.6612,137.43,137.35,34.25217798]
[1726358613579,16.6612,137.43,137.36,14.25217798]
[1726358613760,16.6612,137.43,137.36,15.70798579]
[1726358614387,16.6612,137.43,137.37,14.25217798]
[1726358614688,16.6612,137.43,137.38,1.45561948]
[1726358616169,16.6612,137.43,137.37,14.25217798]
[1726358620386,16.6612,137.43,137.38,20.0]
[1726358640782,16.6612,137.43,137.4,14.25217798]
[1726358641083,16.6612,137.43,137.41,1.45527747]
[1726358641480,21.9578,137.48,137.42,14.25217798]
[1726358641708,21.9578,137.48,137.43,35.70719112]
[1726358642003,21.9578,137.48,137.44,14.25217798]
[1726358642705,15.7332,137.48,137.45,14.25217798]
[1726358642892,0.2563927,137.49,137.45,14.25217798]
[1726358644506,0.2563927,137.49,137.46,14.25217798]
[1726358645305,0.2563927,137.49,137.45,14.25217798]
[1726358646798,0.2563927,137.49,137.44,14.25217798]
[1726358647017,0.2563927,137.49,137.45,20.0]
[1726358650120,0.2563927,137.49,137.43,20.0]
[1726358650319,0.2563927,137.49,137.45,20.0]
[1726358650504,0.2563927,137.49,137.43,14.25217798]
[1726358650710,0.2563927,137.49,137.43,20.0]
[1726358651831,0.2563927,137.49,137.42,0.25098]
[1726358652004,0.2563927,137.49,137.43,20.0]
[1726358655723,0.2563927,137.49,137.43,14.25217798]
[1726358655921,0.2563927,137.49,137.44,20.0]
[1726358664208,0.2563927,137.49,137.44,34.25217798]
[1726358665838,0.2563927,137.49,137.45,15.70698199]
[1726358666035,0.2563927,137.49,137.45,14.25217798]
[1726358666624,0.2563927,137.49,137.44,14.37766798]
[1726358679650,0.2563927,137.49,137.45,14.25217798]
[1726358680253,0.2563927,137.49,137.46,14.25217798]
[1726358682733,0.2563927,137.49,137.46,20.0]
[1726358687256,0.2563927,137.49,137.47,14.37766798]
[1726358687853,0.2563927,137.49,137.48,20.0]
[1726358690360,0.2563927,137.49,137.48,45.48221641]
[1726358691156,0.2563927,137.49,137.48,44.027864]
[1726358692241,0.2563927,137.49,137.48,44.153354]
[1726358692953,0.2563927,137.49,137.48,58.40553198]
[1726358712782,0.2563927,137.49,137.48,34.37766798]
[1726358713081,0.2563927,137.49,137.48,20.12549]
[1726358713268,0.2563927,137.49,137.48,20.0]
[1726358716206,0.2563927,137.49,137.45,20.0]
[1726358716490,0.2563927,137.49,137.48,20.0]
[1726358720287,0.2563927,137.49,137.47,20.0]
[1726358721789,0.2563927,137.49,137.46,20.25098]
[1726358721993,0.2563927,137.49,137.46,34.50315798]
[1726358722173,0.2563927,137.49,137.46,43.87316241]
[1726358722379,0.2563927,137.49,137.48,20.0]
[1726358725091,0.2563927,137.49,137.48,58.40553198]
[1726358737005,0.2563927,137.49,137.48,58.28004198]
[1726358737790,0.2563927,137.49,137.47,34.25217798]
[1726358739904,0.2563927,137.49,137.46,20.0]
[1726358741506,0.2563927,137.49,137.46,34.25217798]
[1726358745307,0.2563927,137.49,137.46,20.0]
[1726358753834,0.2563927,137.49,137.44,24.027864]
[1726358754030,0.2563927,137.49,137.47,20.0]
[1726358754737,0.2563927,137.49,137.47,14.25217798]
[1726358754924,0.2563927,137.49,137.48,43.62218241]
[1726358757517,0.2563927,137.49,137.48,34.25217798]
[1726358761636,0.2563927,137.49,137.48,59.60890116]
[1726358761832,0.2563927,137.49,137.48,58.28004198]
[1726358762744,0.2563927,137.49,137.48,58.40553198]
[1726358763941,0.2563927,137.49,137.48,34.37766798]
[1726358764240,0.2563927,137.49,137.48,20.0]
[1726358767647,0.2563927,137.49,137.46,20.0]
[1726358767950,0.2563927,137.49,137.48,20.0]
[1726358784588,0.2563927,137.49,137.45,30.92390443]
[1726358784589,0.2563927,137.49,137.46,34.25217798]
[1726358785691,0.2563927,137.49,137.46,20.0]
[1726358785992,0.2563927,137.49,137.46,34.25217798]
[1726358792292,0.2563927,137.49,137.47,14.25217798]
[1726358792594,0.2563927,137.49,137.48,20.0]
[1726358801410,0.2563927,137.49,137.39,20.89357798]
[1726358801620,16.6243,137.48,137.39,6.4328]
[1726358801910,16.6243,137.48,137.38,30.47927798]
[1726358802104,16.6243,137.48,137.39,30.0]
[1726358802410,16.6243,137.48,137.38,30.47927798]
[1726358802787,16.6243,137.48,137.4,20.0]
[1726358802988,16.6243,137.48,137.39,20.0]
[1726358810020,16.6243,137.48,137.4,14.25217798]
[1726358811210,16.6243,137.48,137.39,34.25217798]
[1726358812019,16.6243,137.48,137.39,14.25217798]
[1726358812704,16.6243,137.48,137.43,0.12549]
[1726358812905,16.6243,137.48,137.43,0.25098]
[1726358813504,16.6243,137.48,137.43,14.50315798]
[1726358814620,16.6243,137.48,137.43,0.25098]
[1726358816029,16.6243,137.48,137.43,14.50315798]
[1726358817924,16.6243,137.48,137.44,23.902374]
[1726358818225,16.6243,137.48,137.44,14.37766798]
[1726358829449,16.6243,137.48,137.44,0.12549]
[1726358829626,16.6243,137.48,137.44,24.027864]
[1726358830737,16.6243,137.48,137.44,0.12549]
[1726358831321,16.6243,137.48,137.43,24.027864]
[1726358831946,16.6243,137.48,137.41,14.25217798]
[1726358832150,16.6243,137.48,137.42,24.027864]
[1726358837043,16.6243,137.48,137.42,38.28004198]
[1726358841535,16.6243,137.48,137.42,24.027864]
[1726358851149,16.6243,137.48,137.4,0.12549]
[1726358851457,16.6243,137.48,137.4,0.37647]
[1726358855949,16.6243,137.48,137.4,0.25098]
[1726358856139,6.4759,137.47,137.4,0.25098]
[1726358861264,6.4759,137.47,137.41,23.776884]
[1726358870974,6.4759,137.47,137.42,0.37647]
[1726358872168,6.4759,137.47,137.42,0.25098]
[1726358875403,6.4759,137.47,137.41,23.776884]
[1726358879862,6.4759,137.47,137.4,24.027864]
[1726358889073,6.4759,137.47,137.4,14.50315798]
[1726358889273,6.4759,137.47,137.41,23.776884]
[1726358902298,6.4759,137.47,137.4,24.027864]
[1726358939651,0.2563927,137.49,137.43,14.25217798]
[1726358939857,0.2563927,137.49,137.48,38.15455198]
[1726358940039,0.2563927,137.49,137.48,38.28004198]
[1726358940840,0.2563927,137.49,137.48,44.09560176]
[1726358941041,0.2563927,137.49,137.48,44.22109176]
[1726358941361,0.2563927,137.49,137.48,29.96891378]
[1726358941661,0.2563927,137.49,137.48,44.22109176]
[1726358941859,0.2563927,137.49,137.48,48.12613942]
[1726358944868,0.2563927,137.49,137.48,48.12614719]
[1726358945267,0.2563927,137.49,137.48,48.00066053]
[1726358947787,0.2563927,137.49,137.48,44.09543561]
[1726358947958,0.2563927,137.49,137.48,47.99973283]
[1726358948382,0.2563927,137.49,137.48,44.09543561]
[1726358949982,0.2563927,137.49,137.48,29.71776763]
[1726358950376,0.2563927,137.49,137.48,29.59227763]
[1726358951684,0.2563927,137.49,137.48,23.776884]
[1726358951862,0.2563927,137.49,137.48,29.59141425]
[1726358955091,0.2563927,137.49,137.48,23.776884]
[1726358955269,0.2563927,137.49,137.48,29.5912593]
[1726358958587,0.2563927,137.49,137.48,23.776884]
[1726358958890,0.2563927,137.49,137.48,29.59123716]
[1726358962091,0.2563927,137.49,137.48,29.5917567]
[1726358962588,0.2563927,137.49,137.48,5.8148727]
[1726358963875,0.2563927,137.49,137.48,29.5917567]
[1726358964777,0.2563927,137.49,137.43,14.25217798]
[1726358965100,0.2563927,137.49,137.44,5.81945258]
[1726358965273,0.2563927,137.49,137.45,5.81945258]
[1726358965470,0.2563927,137.49,137.43,14.25217798]
[1726358965896,0.2563927,137.49,137.44,5.81890514]
[1726358966084,0.2563927,137.49,137.46,23.776884]
[1726358967492,0.2563927,137.49,137.47,5.81930718]
[1726358967791,0.2563927,137.49,137.46,23.776884]
[1726358967995,0.2563927,137.49,137.47,5.81917823]
[1726358968168,0.2563927,137.49,137.46,23.776884]
[1726358968369,0.2563927,137.49,137.47,5.819435]
[1726358968579,0.2563927,137.49,137.46,23.776884]
[1726358968776,0.2563927,137.49,137.47,5.81944488]
[1726358969069,0.2563927,137.49,137.46,23.776884]
[1726358969269,0.2563927,137.49,137.47,5.82005849]
[1726358969470,0.2563927,137.49,137.46,23.776884]
[1726358969672,0.2563927,137.49,137.47,5.82005849]
[1726358969993,0.2563927,137.49,137.46,23.776884]
[1726358970296,0.2563927,137.49,137.47,5.82004903]
[1726358970494,0.2563927,137.49,137.46,23.776884]
[1726358970670,0.2563927,137.49,137.47,5.82004791]
[1726358970870,0.2563927,137.49,137.46,23.776884]
[1726358971081,0.2563927,137.49,137.47,5.82013982]
[1726358971369,0.2563927,137.49,137.46,23.776884]
[1726358971570,0.2563927,137.49,137.47,5.82001616]
[1726358971788,0.2563927,137.49,137.46,23.776884]
[1726358971993,0.2563927,137.49,137.47,5.82001504]
[1726358972186,0.2563927,137.49,137.46,23.776884]
[1726358972389,0.2563927,137.49,137.47,5.81988309]
[1726358972590,0.2563927,137.49,137.46,23.776884]
[1726358972790,0.2563927,137.49,137.48,23.776884]
[1726358978295,0.2563927,137.49,137.48,29.59621234]
[1726358982393,0.2563927,137.49,137.48,5.81932834]
[1726358982600,0.2563927,137.49,137.43,23.776884]
[1726358982800,0.2563927,137.49,137.45,23.776884]
[1726358982998,0.2563927,137.49,137.46,5.82111907]
[1726358983201,0.2563927,137.49,137.45,23.776884]
[1726358983503,0.2563927,137.49,137.46,5.8213682]
[1726358983693,0.2563927,137.49,137.47,5.8213682]
[1726358983996,16.6643927,137.49,137.41,16.343]
[1726358984202,16.6643927,137.49,137.42,9.73275222]
[1726358984390,16.6643927,137.49,137.43,5.82259705]
[1726358984595,16.6643927,137.49,137.44,5.82259705]
[1726358984902,16.6643927,137.49,137.45,5.82259705]
[1726358985113,16.6643927,137.49,137.46,5.82259705]
[1726358985279,16.6643927,137.49,137.43,23.776884]
[1726358985479,16.6643927,137.49,137.45,23.776884]
[1726358985679,16.6643927,137.49,137.46,5.82264064]
[1726358985894,16.6643927,137.49,137.42,23.776884]
[1726358986199,16.6643927,137.49,137.44,23.776884]
[1726358986383,16.6643927,137.49,137.45,5.8226422]
[1726358986698,16.6643927,137.49,137.44,23.776884]
[1726359001609,16.6643927,137.49,137.37,2.90891909]
[1726359001610,0.25098,137.48,137.37,22.71039]
[1726359001798,0.25098,137.48,137.38,27.81287817]
[1726359002000,7.52478,137.48,137.4,23.776884]
[1726359002203,0.25098,137.48,137.4,23.776884]
[1726359002410,0.25098,137.48,137.42,23.776884]
[1726359003416,16.6643927,137.49,137.42,23.776884]
[1726359011709,23.9377927,137.49,137.42,23.776884]
[1726359012019,7.52498,137.48,137.42,23.776884]
[1726359014625,0.25098,137.48,137.42,23.776884]
[1726359014999,0.25098,137.48,137.41,23.776884]
[1726359015425,0.25098,137.48,137.4,23.776884]
[1726359015626,0.25098,137.48,137.42,23.776884]
[1726359015800,0.25098,137.48,137.4,23.776884]
[1726359016121,0.25098,137.48,137.42,23.776884]
[1726359016423,0.25098,137.48,137.4,23.776884]
[1726359016629,0.25098,137.48,137.42,23.776884]
[1726359016832,0.25098,137.48,137.4,23.776884]
[1726359017021,0.25098,137.48,137.42,23.776884]
[1726359017205,0.25098,137.48,137.4,23.776884]
[1726359017406,0.25098,137.48,137.42,23.776884]
[1726359017606,0.25098,137.48,137.4,23.776884]
[1726359017807,0.25098,137.48,137.42,23.776884]
[1726359022735,7.2744,137.47,137.42,23.776884]
[1726359023026,7.52478,137.48,137.42,23.776884]
[1726359024129,5.46738644,137.48,137.42,23.776884]
[1726359026611,5.46738644,137.48,137.43,3.90988816]
[1726359026804,5.46738644,137.48,137.42,23.776884]
[1726359027307,5.46738644,137.48,137.43,3.90997522]
[1726359027507,5.46738644,137.48,137.42,23.776884]
[1726359029929,6.6281,137.47,137.42,23.776884]
[1726359032037,13.9025,137.47,137.42,23.776884]
[1726359032232,0.25098,137.46,137.37,22.5849]
[1726359033816,0.25098,137.46,137.38,23.776884]
[1726359035624,15.6904,137.45,137.38,23.776884]
[1726359045342,15.6904,137.45,137.4,23.776884]
[1726359047048,15.6904,137.45,137.42,23.776884]
[1726359047233,15.6904,137.45,137.43,5.81770662]
[1726359047427,15.6904,137.45,137.44,5.81770662]
[1726359048639,15.6904,137.45,137.44,5.81800547]
[1726359051951,15.6904,137.45,137.4,23.776884]
[1726359052133,15.6904,137.45,137.44,5.81829721]
[1726359058677,15.6904,137.45,137.4,23.776884]
[1726359058954,15.6904,137.45,137.42,23.776884]
[1726359059256,15.6904,137.45,137.43,5.81847249]
[1726359059448,15.6904,137.45,137.44,5.81847249]
[1726359060946,6.6281,137.47,137.44,5.81847249]
[1726359061155,6.6281,137.47,137.39,23.776884]
[1726359061355,6.6281,137.47,137.4,5.8176641]
[1726359061561,6.6281,137.47,137.39,23.776884]
[1726359079002,6.6281,137.47,137.38,23.776884]
[1726359079003,13.9025,137.47,137.38,23.776884]
[1726359087606,13.9025,137.47,137.4,23.776884]
[1726359087911,13.9025,137.47,137.42,23.776884]
[1726359088089,13.9025,137.47,137.38,23.776884]
[1726359088286,13.9025,137.47,137.4,23.776884]
[1726359088590,13.9025,137.47,137.42,23.776884]
[1726359091910,22.78267,137.46,137.36,0.12549]
[1726359092088,22.78267,137.46,137.36,24.153354]
[1726359092409,22.78267,137.46,137.38,23.776884]
[1726359092611,22.78267,137.46,137.39,3.9066454]
[1726359092811,22.78267,137.46,137.4,3.9066454]
[1726359092997,22.78267,137.46,137.41,3.9066454]
[1726359093198,22.78267,137.46,137.42,3.9066454]
[1726359093405,22.78267,137.46,137.36,24.153354]
[1726359093616,22.78267,137.46,137.38,23.776884]
[1726359093817,22.78267,137.46,137.4,23.776884]
[1726359094116,22.78267,137.46,137.41,3.9066305]
[1726359094307,22.78267,137.46,137.42,3.9066305]
[1726359094520,22.78267,137.46,137.36,24.153354]
[1726359094899,22.78267,137.46,137.38,23.776884]
[1726359095401,22.78267,137.46,137.4,23.776884]
[1726359095604,22.78267,137.46,137.41,3.9066305]
[1726359095804,22.78267,137.46,137.42,3.9066305]
[1726359096110,22.78267,137.46,137.36,24.153354]
[1726359096313,22.78267,137.46,137.38,23.776884]
[1726359096500,22.78267,137.46,137.4,23.776884]
[1726359096701,22.78267,137.46,137.39,3.90697208]
[1726359096702,22.78267,137.46,137.41,3.90697208]
[1726359096910,22.78267,137.46,137.42,3.90697208]
[1726359097112,22.78267,137.46,137.38,23.776884]
[1726359097919,22.78267,137.46,137.39,3.90662317]
[1726359098121,22.78267,137.46,137.4,23.776884]
[1726359098428,22.78267,137.46,137.41,3.90662317]
[1726359098600,22.78267,137.46,137.4,23.776884]
[1726359098913,22.78267,137.46,137.42,3.90696519]
[1726359099502,22.78267,137.46,137.4,23.776884]
[1726359099703,15.50787,137.46,137.4,23.776884]
[1726359099907,15.1314,137.46,137.4,23.776884]
[1726359121517,15.1314,137.46,137.42,23.776884]
[1726359121720,15.1314,137.46,137.43,5.82049734]
[1726359122033,15.1314,137.46,137.44,5.82049734]
[1726359122220,15.1314,137.46,137.45,5.82049734]
[1726359124124,15.1314,137.46,137.45,5.8203382]
[1726359125419,15.1314,137.46,137.45,5.82191846]
[1726359127438,15.1314,137.46,137.4,23.776884]
[1726359127740,15.1314,137.46,137.41,5.82240002]
[1726359127921,15.1314,137.46,137.42,29.59930511]
[1726359128131,15.1314,137.46,137.43,5.82242111]
[1726359128431,15.1314,137.46,137.44,5.82242111]
[1726359128631,15.1314,137.46,137.45,5.82242111]
[1726359130941,15.1314,137.46,137.4,23.776884]
[1726359131145,15.1314,137.46,137.41,5.82290935]
[1726359131354,15.1314,137.46,137.42,5.82290935]
[1726359131543,15.1314,137.46,137.43,5.82290935]
[1726359131847,15.1314,137.46,137.44,5.82290935]
[1726359132152,15.1314,137.46,137.45,5.82290935]
[1726359138250,15.1314,137.46,137.45,5.82324991]
[1726359141356,15.1314,137.46,137.4,23.776884]
[1726359141550,15.1314,137.46,137.45,5.82324991]
[1726359148239,15.1314,137.46,137.4,23.776884]
[1726359148427,15.1314,137.46,137.41,5.82340953]
[1726359148629,15.1314,137.46,137.42,29.60029353]
[1726359148846,15.1314,137.46,137.4,23.776884]
[1726359159668,15.1314,137.46,137.41,3.91047238]
[1726359159870,15.1314,137.46,137.42,3.91047238]
[1726359160048,15.1314,137.46,137.4,23.776884]
[1726359160345,15.1314,137.46,137.41,3.91062176]
[1726359160545,15.1314,137.46,137.42,3.91062176]
[1726359160865,15.1314,137.46,137.4,23.776884]
[1726359161045,15.1314,137.46,137.41,3.91062733]
[1726359161248,15.1314,137.46,137.42,3.91062733]
[1726359161442,15.1314,137.46,137.4,23.776884]
[1726359161637,15.1314,137.46,137.41,3.9106291]
[1726359162053,15.1314,137.46,137.42,3.91062543]
[1726359162553,15.1314,137.46,137.4,23.776884]
[1726359162764,15.1314,137.46,137.41,3.91071583]
[1726359162966,15.1314,137.46,137.42,3.91071583]
[1726359163154,15.1314,137.46,137.4,23.776884]
[1726359163452,15.1314,137.46,137.41,3.91071583]
[1726359163652,15.1314,137.46,137.42,3.91071583]
[1726359163857,15.1314,137.46,137.4,23.776884]
[1726359164154,15.1314,137.46,137.41,3.91064746]
[1726359164347,15.1314,137.46,137.42,3.91064746]
[1726359164548,15.1314,137.46,137.4,23.776884]
[1726359164746,15.1314,137.46,137.41,3.91046425]
[1726359164968,15.1314,137.46,137.42,3.91046425]
[1726359165151,15.1314,137.46,137.4,23.776884]
[1726359165868,15.1314,137.46,137.41,3.91055912]
[1726359166063,15.1314,137.46,137.42,3.91055912]
[1726359166262,15.1314,137.46,137.4,23.776884]
[1726359166462,15.1314,137.46,137.41,3.91062572]
[1726359166658,15.1314,137.46,137.42,3.91062572]
[1726359166864,15.1314,137.46,137.4,23.776884]
[1726359167072,15.1314,137.46,137.41,3.91062015]
[1726359167264,15.1314,137.46,137.42,3.91062015]
[1726359167468,15.1314,137.46,137.4,23.776884]
[1726359167672,15.1314,137.46,137.41,3.91062572]
[1726359167866,15.1314,137.46,137.42,3.91062572]
[1726359168067,15.1314,137.46,137.4,23.776884]
[1726359168261,15.1314,137.46,137.41,3.91097602]
[1726359168461,15.1314,137.46,137.42,3.91097602]
[1726359168668,15.1314,137.46,137.4,23.776884]
[1726359168975,16.7169927,137.49,137.42,23.776884]
[1726359169179,0.2563927,137.49,137.44,0.12549]
[1726359169356,0.2563927,137.49,137.45,0.12549]
[1726359169558,0.2563927,137.49,137.45,0.25098]
[1726359169854,0.2563927,137.49,137.46,23.776884]
[1726359174866,0.2563927,137.49,137.45,23.776884]
[1726359181871,0.2563927,137.49,137.45,25.23163636]
[1726359182187,0.2563927,137.49,137.45,23.776884]
[1726359182366,0.2563927,137.49,137.44,23.776884]
[1726359222296,0.2563927,137.49,137.46,23.776884]
[1726359222489,0.2563927,137.49,137.47,1.45460951]
[1726359222722,0.2563927,137.49,137.46,23.776884]
[1726359222898,0.2563927,137.49,137.47,1.45460866]
[1726359223290,0.2563927,137.49,137.46,38.02906198]
[1726359224122,0.2563927,137.49,137.48,23.776884]
[1726359224811,0.2563927,137.49,137.47,23.776884]
[1726359225918,0.2563927,137.49,137.48,25.23130106]
[1726359229229,0.2563927,137.49,137.48,29.13673555]
[1726359229415,0.2563927,137.49,137.48,27.68231849]
[1726359232008,0.2563927,137.49,137.48,23.776884]
[1726359232220,0.2563927,137.49,137.48,27.6819839]
[1726359235238,0.2563927,137.49,137.48,23.776884]
[1726359235842,0.2563927,137.49,137.48,27.68134092]
[1726359242631,0.2563927,137.49,137.48,23.776884]
[1726359247236,0.2563927,137.49,137.47,23.776884]
[1726359249544,0.2563927,137.49,137.46,23.902374]
[1726359249752,0.2563927,137.49,137.48,23.776884]
[1726359268958,0.2563927,137.49,137.48,29.59388163]
[1726359269357,0.2563927,137.49,137.48,23.776884]
[1726359269563,0.2563927,137.49,137.48,29.59388163]
[1726359272367,0.2563927,137.49,137.48,5.81699763]
[1726359272542,0.2563927,137.49,137.48,5.31699763]
[1726359273261,0.2563927,137.49,137.44,0.12549]
[1726359273460,0.2563927,137.49,137.44,23.902374]
[1726359273673,0.2563927,137.49,137.47,3.90662223]
[1726359273839,0.2563927,137.49,137.46,23.776884]
[1726359274044,0.2563927,137.49,137.47,3.90662869]
[1726359274341,0.2563927,137.49,137.44,23.902374]
[1726359274566,0.2563927,137.49,137.46,23.776884]
[1726359274863,0.2563927,137.49,137.47,3.90663608]
[1726359275064,0.2563927,137.49,137.44,23.776884]
[1726359275258,0.2563927,137.49,137.46,23.776884]
[1726359275459,0.2563927,137.49,137.47,3.90663608]
[1726359275643,0.2563927,137.49,137.46,23.776884]
[1726359275843,0.2563927,137.49,137.47,3.90662869]
[1726359276044,0.2563927,137.49,137.46,23.776884]
[1726359276258,0.2563927,137.49,137.47,3.90662589]
[1726359276463,0.2563927,137.49,137.46,23.776884]
[1726359277268,0.2563927,137.49,137.47,3.9066278]
[1726359277447,0.2563927,137.49,137.46,23.776884]
[1726359277647,0.2563927,137.49,137.47,3.90662869]
[1726359277848,0.2563927,137.49,137.46,23.776884]
[1726359278055,0.2563927,137.49,137.47,3.9066278]
[1726359278253,0.2563927,137.49,137.46,23.776884]